fUST/lending_fUST_20240809
["ID","MTS","AMOUNT","RATE_DAILY","PERIOD"]
[334482494,1723155044192,-500.0,0.00027671,7]
[334482496,1723155044201,-500.0,0.00027671,7]
[334482498,1723155044211,-500.0,0.00027671,7]
[334482500,1723155044220,-500.0,0.00027671,7]
[334482502,1723155044229,-500.0,0.00027671,7]
[334482504,1723155044241,-492.8088702,0.00027671,7]
[334482506,1723155044250,-500.0,0.00027671,7]
[334482508,1723155044260,-517.44,0.00027671,7]
[334482510,1723155044269,-500.0,0.00027671,7]
[334482512,1723155044279,-500.0,0.00027671,7]
[334482514,1723155044289,-592.2,0.00027671,7]
[334482516,1723155044298,-500.0,0.00027671,7]
[334482518,1723155044307,-500.0,0.00027671,7]
[334482520,1723155044316,-267.78494279,0.00027671,7]
[334482522,1723155044326,-532.05,0.00027671,7]
[334482524,1723155044336,-500.0,0.00027671,7]
[334482526,1723155044345,-500.0,0.00027671,7]
[334482528,1723155044354,-500.0,0.00027671,7]
[334482530,1723155044363,-528.8,0.00027671,7]
[334482532,1723155044372,-500.0,0.00027671,7]
[334482534,1723155044382,-219.52502889,0.00027671,7]
[334482536,1723155044391,-500.0,0.00027671,7]
[334482538,1723155044400,-303.98216675,0.00027671,7]
[334482540,1723155044409,-500.0,0.00027671,7]
[334482542,1723155044418,-591.48,0.00027671,7]
[334482544,1723155044427,-813.34,0.00027671,7]
[334482546,1723155044437,-500.0,0.00027671,7]
[334482548,1723155044446,-694.65,0.00027671,7]
[334482550,1723155044455,-882.85,0.00027671,7]
[334482552,1723155044464,-500.0,0.00027671,7]
[334482554,1723155044473,-500.0,0.00027671,7]
[334482556,1723155044483,-500.0,0.00027671,7]
[334482558,1723155044495,-562.05,0.00027671,7]
[334482560,1723155044504,-500.0,0.00027671,7]
[334482562,1723155044514,-500.0,0.00027671,7]
[334482563,1723155044524,-855.66,0.00027671,7]
[334482565,1723155044534,-500.0,0.00027671,7]
[334482567,1723155044547,-500.0,0.00027671,7]
[334482569,1723155044556,-500.0,0.00027671,7]
[334482571,1723155044565,-500.0,0.00027671,7]
[334482574,1723155044575,-500.0,0.00027671,7]
[334482576,1723155044585,-500.0,0.00027671,7]
[334482577,1723155044594,-500.0,0.00027671,7]
[334482579,1723155044603,-500.0,0.00027671,7]
[334482582,1723155044613,-500.0,0.00027671,7]
[334482584,1723155044623,-500.0,0.00027671,7]
[334482586,1723155044632,-500.0,0.00027671,7]
[334482588,1723155044642,-500.0,0.00027671,7]
[334482590,1723155044651,-694.13,0.00027671,7]
[334482592,1723155044661,-500.0,0.00027671,7]
[334482594,1723155044670,-665.99,0.00027671,7]
[334482596,1723155044679,-500.0,0.00027671,7]
[334482598,1723155044689,-500.0,0.00027671,7]
[334482600,1723155044698,-500.0,0.00027671,7]
[334482602,1723155044708,-569.52536608,0.00027671,7]
[334482604,1723155044718,-500.0,0.00027671,7]
[334482606,1723155044727,-1067.39,0.00027671,7]
[334482608,1723155044736,-500.0,0.00027671,7]
[334482610,1723155044747,-151.0,0.00027671,7]
[334482612,1723155044757,-1187.54,0.00027671,7]
[334482614,1723155044767,-500.0,0.00027671,7]
[334482616,1723155044776,-766.78,0.00027671,7]
[334482634,1723155044929,-561.33,0.00027671,7]
[334482636,1723155044939,-500.0,0.00027671,7]
[334482638,1723155044949,-500.0,0.00027671,7]
[334482639,1723155044958,-151.0,0.00027671,7]
[334482641,1723155044967,-151.0,0.00027671,7]
[334482643,1723155044976,-597.10588053,0.00027671,7]
[334482645,1723155044986,-500.0,0.00027671,7]
[334482647,1723155044996,-1200.45,0.00027671,7]
[334482649,1723155045006,-672.91,0.00027671,7]
[334482651,1723155045015,-500.0,0.00027671,7]
[334482653,1723155045024,-500.0,0.00027671,7]
[334482655,1723155045033,-1165.24,0.00027671,7]
[334482657,1723155045042,-534.67,0.00027671,7]
[334482659,1723155045052,-151.0,0.00027671,7]
[334482661,1723155045061,-194.071823,0.00027671,7]
[334482663,1723155045070,-500.0,0.00027671,7]
[334482665,1723155045079,-151.0,0.00027671,7]
[334482667,1723155045089,-151.0,0.00027671,7]
[334482669,1723155045098,-500.0,0.00027671,7]
[334482671,1723155045108,-500.0,0.00027671,7]
[334482673,1723155045117,-500.0,0.00027671,7]
[334482674,1723155045127,-998.43,0.00027671,7]
[334482675,1723155045137,-707.98,0.00027671,7]
[334482677,1723155045147,-500.0,0.00027671,7]
[334482679,1723155045156,-698.67,0.00027671,7]
[334482681,1723155045165,-500.0,0.00027671,7]
[334482683,1723155045174,-500.0,0.00027671,7]
[334482684,1723155045184,-500.0,0.00027671,7]
[334482686,1723155045194,-537.28,0.00027671,7]
[334482687,1723155045203,-983.98,0.00027671,7]
[334482688,1723155045212,-500.0,0.00027671,7]
[334482689,1723155045222,-500.0,0.00027671,7]
[334482690,1723155045231,-500.0,0.00027671,7]
[334482691,1723155045241,-1342.2,0.00027671,7]
[334482693,1723155045251,-1289.35,0.00027671,7]
[334482695,1723155045260,-500.0,0.00027671,7]
[334482696,1723155045269,-668.1,0.00027671,7]
[334482698,1723155045278,-569.08,0.00027671,7]
[334482699,1723155045288,-500.0,0.00027671,7]
[334482701,1723155045297,-1405.69,0.00027671,7]
[334482704,1723155045306,-500.0,0.00027671,7]
[334482706,1723155045317,-506.69,0.00027671,7]
[334482708,1723155045327,-500.0,0.00027671,7]
[334482710,1723155045336,-1791.22,0.00027671,7]
[334482711,1723155045346,-500.0,0.00027671,7]
[334482712,1723155045356,-634.41,0.00027671,7]
[334482713,1723155045366,-1439.63,0.00027671,7]
[334482715,1723155045375,-500.0,0.00027671,7]
[334482717,1723155045386,-7593.44,0.00027671,7]
[334482718,1723155045396,-500.0,0.00027671,7]
[334482719,1723155045406,-500.0,0.00027671,7]
[334482720,1723155045415,-500.0,0.00027671,7]
[334482721,1723155045425,-1680.41,0.00027671,7]
[334482723,1723155045434,-2347.15,0.00027671,7]
[334482724,1723155045444,-1226.78,0.00027671,7]
[334482725,1723155045455,-500.0,0.00027671,7]
[334482726,1723155045464,-1252.57,0.00027671,7]
[334482727,1723155045475,-500.0,0.00027671,7]
[334482728,1723155045483,-4707.39,0.00027671,7]
[334482729,1723155045493,-500.0,0.00027671,7]
[334482730,1723155045502,-798.08,0.00027671,7]
[334482731,1723155045512,-500.0,0.00027671,7]
[334482732,1723155045522,-500.0,0.00027671,7]
[334482733,1723155045532,-500.0,0.00027671,7]
[334482734,1723155045543,-500.0,0.00027671,7]
[334482735,1723155045553,-554.05,0.00027671,7]
[334482736,1723155045562,-2548.62,0.00027671,7]
[334482737,1723155045572,-530.8,0.00027671,7]
[334482738,1723155045582,-4415.21,0.00027671,7]
[334482739,1723155045592,-1311.47,0.00027671,7]
[334482740,1723155045601,-500.0,0.00027671,7]
[334482741,1723155045611,-536.31211915,0.00027671,7]
[334482742,1723155045620,-500.0,0.00027671,7]
[334482743,1723155045630,-564.42,0.00027671,7]
[334482744,1723155045640,-718.28,0.00027671,7]
[334482745,1723155045649,-689.04,0.00027671,7]
[334482746,1723155045659,-500.0,0.00027671,7]
[334482747,1723155045668,-885.48,0.00027671,7]
[334482748,1723155045678,-500.0,0.00027671,7]
[334482749,1723155045687,-500.0,0.00027671,7]
[334482750,1723155045698,-725.32,0.00027671,7]
[334482751,1723155045708,-647.05,0.00027671,7]
[334482752,1723155045719,-151.0,0.00027671,7]
[334482753,1723155045728,-827.56,0.00027671,7]
[334482754,1723155045738,-710.55,0.00027671,7]
[334482755,1723155045749,-500.0,0.00027671,7]
[334482756,1723155045759,-151.0,0.00027671,7]
[334482757,1723155045768,-500.0,0.00027671,7]
[334482758,1723155045778,-151.0,0.00027671,7]
[334482759,1723155045788,-151.661857,0.00027671,7]
[334482760,1723155045798,-500.0,0.00027671,7]
[334482762,1723155045807,-1704.83,0.00027671,7]
[334482763,1723155045817,-539.76,0.00027671,7]
[334482764,1723155045829,-500.0,0.00027671,7]
[334482765,1723155045840,-500.0,0.00027671,7]
[334482766,1723155045851,-1123.44,0.00027671,7]
[334482767,1723155045862,-569.07,0.00027671,7]
[334482768,1723155045872,-500.0,0.00027671,7]
[334482769,1723155045882,-151.0,0.00027671,7]
[334482770,1723155045891,-3288.62,0.00027671,7]
[334482771,1723155045901,-151.0,0.00027671,7]
[334482772,1723155045911,-580.8,0.00027671,7]
[334482773,1723155045920,-1133.95,0.00027671,7]
[334482774,1723155045929,-500.0,0.00027671,7]
[334482775,1723155045939,-151.0,0.00027671,7]
[334482776,1723155045948,-500.0,0.00027671,7]
[334482777,1723155045958,-500.0,0.00027671,7]
[334482778,1723155045967,-888.74,0.00027671,7]
[334482779,1723155045976,-402.57017142,0.00027671,7]
[334482780,1723155046075,-26.51240092,0.00027397,7]
[334482781,1723155046087,-544.38108266,0.00027397,7]
[334482808,1723155047556,-153.0,0.00026849,2]
[334482809,1723155047567,-152.57509004,0.00027123,2]
[334482810,1723155173138,165.908887,0.00014247,2]
[334482811,1723155291978,-191.72259366,0.00015164,2]
[334482812,1723155292531,273.37336231,9.9e-05,2]
[334482813,1723155308249,273.37336231,9.9e-05,2]
[334482814,1723155324791,273.37336231,9.9e-05,2]
[334482815,1723155326181,252.91900727,0.00014247,2]
[334482816,1723155341099,273.37336231,9.9e-05,2]
[334482817,1723155349698,155.3548721,0.00014247,2]
[334482818,1723155352677,230.01716275,0.00014247,2]
[334482819,1723155354225,225.27655142,0.00014247,2]
[334482820,1723155355911,273.37336231,9.9e-05,2]
[334482821,1723155362230,4140.06892891,0.00014247,2]
[334482822,1723155366019,1669.66626551,0.00014247,2]
[334482823,1723155372352,273.37336231,9.9e-05,2]
[334482824,1723155374986,294.73444452,0.00014247,2]
[334482825,1723155375013,9.45650148,0.00014247,2]
[334482826,1723155376340,191.72259366,0.00015064,2]
[334482827,1723155389046,273.37336231,9.9e-05,2]
[334482828,1723155409059,838.62777096,0.00015064,2]
[334482830,1723155418578,190.4105277,0.00015064,2]
[334482832,1723155478520,1590.6447402,0.00015064,2]
[334482833,1723155720815,24900.0,0.00014752,2]
[334482834,1723155724199,220.31354,0.00014247,2]
[334482836,1723155869411,307.670748,0.00014628,2]
[334482843,1723156071385,2850.30626675,0.00015,2]
[334482845,1723156076597,373.0726274,0.00014628,2]
[334482846,1723156080011,217.86716505,0.00014628,2]
[334482847,1723156091524,5237.50205215,0.00015,2]
[334482850,1723156132145,3000.0,0.00014683,2]
[334482851,1723156149359,204.10368515,0.00014999,2]
[334482852,1723156151764,155.01017471,9.999e-05,2]
[334482853,1723156156616,808.5209824,9.999e-05,2]
[334482855,1723156158363,166.1752696,0.0001477,2]
[334482856,1723156162667,526.59164475,0.00015,2]
[334482858,1723156170155,-250.0,0.00015369,2]
[334482859,1723156170178,-250.0,0.00015411,2]
[334482860,1723156170201,-250.0,0.00015453,2]
[334482861,1723156170224,-250.0,0.00015495,2]
[334482862,1723156170247,-229.60929538,0.00015538,2]
[334482863,1723156173710,492.66220636,0.00015,2]
[334482864,1723156200351,156.14227066,9.999e-05,2]
[334482865,1723156202119,503.68856618,0.0001212,2]
[334482866,1723156204129,201.03320895,0.00015098,2]
[334482867,1723156204490,534.77348609,9.999e-05,2]
[334482868,1723156206477,309.55417808,0.00014999,2]
[334482869,1723156213115,154.89860309,9.999e-05,2]
[334482870,1723156222352,205.20449904,9.999e-05,2]
[334482871,1723156222426,492.52708716,0.00015,2]
[334482872,1723156226169,1109.36970541,0.00015,2]
[334482925,1723156232229,-6.15944305,0.00015098,2]
[334482926,1723156232239,-207.192652,0.0001514,2]
[334482927,1723156232249,-207.192652,0.00015181,2]
[334482928,1723156232258,-207.192652,0.00015223,2]
[334482929,1723156232268,-207.192652,0.00015264,2]
[334482930,1723156232278,-207.192652,0.00015305,2]
[334482931,1723156232287,-207.192652,0.00015347,2]
[334482932,1723156232296,-207.192652,0.00015388,2]
[334482933,1723156232306,-207.192652,0.0001543,2]
[334482934,1723156232316,-207.192652,0.00015471,2]
[334482935,1723156232325,-207.192652,0.00015512,2]
[334482936,1723156232335,-590.41164254,0.00015522,2]
[334482937,1723156232351,-207.192652,0.00015554,2]
[334482938,1723156232361,-207.192652,0.00015595,2]
[334482939,1723156232370,-207.192652,0.00015637,2]
[334482940,1723156232380,-207.192652,0.00015678,2]
[334482941,1723156232390,-300.0,0.00015707,2]
[334482942,1723156232399,-300.0,0.00015707,2]
[334482943,1723156232409,-658.51936169,0.00015707,2]
[334482944,1723156232419,-8018.66161074,0.00015708,2]
[334482945,1723156234098,159.90309772,9.999e-05,2]
[334482946,1723156236691,200.20826285,0.0001,2]
[334482947,1723156236860,241.16751587,9.999e-05,2]
[334482983,1723156238468,-6422.96757484,0.00015708,2]
[334482984,1723156238478,-2140.12040888,0.00015708,2]
[334482985,1723156238488,-1382.92970052,0.00015708,2]
[334482986,1723156238498,-165.59010032,0.00015708,2]
[334482988,1723156238509,-159.81409078,0.00015708,2]
[334482990,1723156238519,-156.8725802,0.00015708,2]
[334482992,1723156238530,-231.27068883,0.00015708,2]
[334482994,1723156238542,-944.21404731,0.0001571,2]
[334482996,1723156238553,-259.81805554,0.0001571,2]
[334482997,1723156238563,-287.77266661,0.00015712,2]
[334482998,1723156238572,-207.192652,0.00015719,2]
[334482999,1723156238580,-207.192652,0.00015761,2]
[334483000,1723156238591,-207.192652,0.00015802,2]
[334483001,1723156238764,-207.192652,0.00015844,2]
[334483002,1723156238774,-207.192652,0.00015885,2]
[334483003,1723156238784,-157.80579925,0.00016095,2]
[334483004,1723156238793,-156.85476971,0.00016095,2]
[334483005,1723156238802,-309.3349299,0.0001611,2]
[334483006,1723156238812,-816.2198788,0.00016309,2]
[334483007,1723156238821,-309.48934258,0.00017019,2]
[334483008,1723156238830,-6825.84105544,0.00017178,2]
[334483009,1723156238839,-420.0,0.00017178,2]
[334483010,1723156238849,-420.0,0.00017278,2]
[334483011,1723156238859,-2849.34761059,0.00017389,2]
[334483012,1723156238868,-356.62824668,0.00017389,2]
[334483013,1723156238879,-180.53401892,0.00017403,2]
[334483014,1723156238889,-4281.56023434,0.00018125,2]
[334483015,1723156238900,-263.68278929,0.00018125,2]
[334483016,1723156238910,-587.0,0.00019005,2]
[334483017,1723156238920,-1091.99358002,0.00019177,2]
[334483018,1723156238929,-166.026159,0.00019178,2]
[334483019,1723156238940,-163.582511,0.00019178,2]
[334483020,1723156238950,-412.65409184,0.00019477,2]
[334483021,1723156238960,-154.79103211,0.00019547,2]
[334483022,1723156238969,-154.79103211,0.00019547,2]
[334483023,1723156238981,-230.37,0.0001999,3]
[334483024,1723156238991,-574.94,0.0001999,3]
[334483025,1723156239000,-287.47,0.0001999,3]
[334483026,1723156239009,-208.87,0.0001999,3]
[334483027,1723156239019,-364.96,0.0001999,3]
[334483028,1723156239029,-312.75,0.0001999,3]
[334483029,1723156239038,-156.37,0.0001999,3]
[334483030,1723156239048,-469.15,0.0001999,3]
[334483031,1723156239058,-500.0,0.00019998,2]
[334483032,1723156239067,-500.0,0.00019998,2]
[334483033,1723156239077,-500.0,0.00019998,2]
[334483034,1723156239086,-500.0,0.00019998,2]
[334483035,1723156239097,-199.56367129,0.00019998,2]
[334483036,1723156239108,-500.0,0.00019998,2]
[334483037,1723156239125,-500.0,0.00019998,2]
[334483038,1723156239135,-500.0,0.00019998,2]
[334483039,1723156239145,-500.0,0.00019998,2]
[334483040,1723156239155,-300.0,0.00019998,2]
[334483041,1723156239164,-500.0,0.00019998,2]
[334483042,1723156239173,-242.44028939,0.00019998,2]
[334483043,1723156239182,-500.0,0.00019998,2]
[334483044,1723156239192,-500.0,0.00019998,2]
[334483045,1723156239201,-500.0,0.00019998,2]
[334483046,1723156239210,-500.0,0.00019998,2]
[334483047,1723156239220,-500.0,0.00019998,2]
[334483048,1723156239229,-500.0,0.00019998,2]
[334483049,1723156239239,-500.0,0.00019998,2]
[334483050,1723156239248,-500.0,0.00019998,2]
[334483051,1723156239257,-500.0,0.00019998,2]
[334483052,1723156239267,-500.0,0.00019998,2]
[334483053,1723156239276,-500.0,0.00019998,2]
[334483054,1723156239286,-500.0,0.00019998,2]
[334483055,1723156239296,-307.91439255,0.00019998,2]
[334483056,1723156239305,-500.0,0.00019998,2]
[334483057,1723156239315,-500.0,0.00019998,2]
[334483058,1723156239324,-500.0,0.00019998,2]
[334483059,1723156239334,-500.0,0.00019998,2]
[334483060,1723156239343,-266.5066308,0.00019998,2]
[334483061,1723156239364,-233.4933692,0.00019998,2]
[334483062,1723156239374,-500.0,0.00019998,2]
[334483063,1723156239384,-500.0,0.00019998,2]
[334483064,1723156239394,-500.0,0.00019998,2]
[334483065,1723156239404,-500.0,0.00019998,2]
[334483066,1723156239414,-500.0,0.00019998,2]
[334483067,1723156239423,-500.0,0.00019998,2]
[334483068,1723156239432,-500.0,0.00019998,2]
[334483069,1723156239442,-500.0,0.00019998,2]
[334483070,1723156239451,-500.0,0.00019998,2]
[334483071,1723156239461,-500.0,0.00019998,2]
[334483072,1723156239471,-500.0,0.00019998,2]
[334483073,1723156239480,-363.50663081,0.00019998,2]
[334483074,1723156239493,-136.49336919,0.00019998,2]
[334483075,1723156239503,-500.0,0.00019998,2]
[334483076,1723156239513,-500.0,0.00019998,2]
[334483077,1723156239522,-245.74663081,0.00019998,2]
[334483078,1723156239534,-254.25336919,0.00019998,2]
[334483079,1723156239544,-500.0,0.00019998,2]
[334483080,1723156239554,-500.0,0.00019998,2]
[334483081,1723156239564,-500.0,0.00019998,2]
[334483082,1723156239574,-500.0,0.00019998,2]
[334483083,1723156239583,-500.0,0.00019998,2]
[334483084,1723156239592,-500.0,0.00019998,2]
[334483085,1723156239608,-500.0,0.00019998,2]
[334483086,1723156239617,-500.0,0.00019998,2]
[334483087,1723156239626,-500.0,0.00019998,2]
[334483088,1723156239636,-500.0,0.00019998,2]
[334483090,1723156239646,-500.0,0.00019998,2]
[334483091,1723156239655,-500.0,0.00019998,2]
[334483092,1723156239665,-500.0,0.00019998,2]
[334483093,1723156239675,-500.0,0.00019998,2]
[334483094,1723156239684,-401.18992377,0.00019998,2]
[334483095,1723156239694,-500.0,0.00019998,2]
[334483096,1723156239703,-500.0,0.00019998,2]
[334483097,1723156239712,-500.0,0.00019998,2]
[334483098,1723156239722,-500.0,0.00019998,2]
[334483099,1723156239732,-500.0,0.00019998,2]
[334483100,1723156239742,-364.26273512,0.00019998,2]
[334483101,1723156239751,-611.22621686,0.00019998,2]
[334483102,1723156239761,-500.0,0.00019998,2]
[334483103,1723156239771,-500.0,0.00019998,2]
[334483104,1723156239780,-500.0,0.00019998,2]
[334483105,1723156239790,-156.42647328,0.0002,2]
[334483106,1723156239799,-294.2333485,0.0002,2]
[334483107,1723156239809,-427.19488527,0.0002,2]
[334483108,1723156239819,-48998.99668614,0.0002,2]
[334483109,1723156239828,-150.112233,0.0002,2]
[334483110,1723156239838,-6825.84105538,0.00020038,2]
[334483111,1723156239849,-17996.04139673,0.00020372,2]
[334483112,1723156239859,-34890.1212277,0.00020472,2]
[334483113,1723156239869,-2005.0,0.00020649,10]
[334483114,1723156239878,-220.31354,0.00020707,2]
[334483115,1723156239888,-522.39318645,0.00020721,2]
[334483116,1723156239902,-301.05042954,0.00020721,2]
[334483117,1723156239912,-823.0,0.00020906,2]
[334483118,1723156239921,-1486.94799468,0.00021,2]
[334483119,1723156239931,-232.69346153,0.00021,2]
[334483120,1723156239941,-7481.67943312,0.00021,2]
[334483121,1723156239950,-150.112233,0.00021,3]
[334483122,1723156239959,-1444.35779383,0.00021048,2]
[334483123,1723156239969,-1444.35779383,0.00021048,2]
[334483124,1723156239980,-503.7190665,0.000212,2]
[334483125,1723156239989,-34890.1212277,0.0002131,3]
[334483126,1723156239998,-460.74,0.0002136,3]
[334483127,1723156240007,-1149.88,0.0002136,3]
[334483128,1723156240017,-574.94,0.0002136,3]
[334483129,1723156240026,-417.74,0.0002136,3]
[334483130,1723156240036,-729.92,0.0002136,3]
[334483131,1723156240045,-625.5,0.0002136,3]
[334483132,1723156240055,-312.74,0.0002136,3]
[334483133,1723156240065,-494.46439567,0.0002142,2]
[334483134,1723156240075,-150.112233,0.000216,4]
[334483135,1723156240084,-307.670748,0.00021943,2]
[334483136,1723156240094,-2063.38602183,0.00022,2]
[334483137,1723156240104,-302.72750301,0.00022,2]
[334483138,1723156240114,-333.19323305,0.00022,2]
[334483139,1723156240123,-150.112233,0.00022,2]
[334483140,1723156240133,-17996.0413967,0.00022004,2]
[334483141,1723156240143,-629.24292617,0.0002268,2]
[334483142,1723156240153,-955.45660139,0.0002268,2]
[334483143,1723156240162,-6825.84105538,0.00022899,2]
[334483144,1723156240172,-150.112233,0.000229,3]
[334483145,1723156240181,-1152.0,0.00022997,2]
[334483146,1723156240191,-8017.3369114,0.00023,2]
[334483147,1723156240201,-150.112233,0.00023,5]
[334483148,1723156240211,-17996.0413967,0.00023636,2]
[334483149,1723156240220,-620.46214631,0.00023814,2]
[334483150,1723156240230,-636.77283007,0.00023814,2]
[334483151,1723156240239,-320.06058595,0.00023989,2]
[334483152,1723156240249,-500.0,0.00023989,2]
[334483153,1723156240258,-500.0,0.00023989,2]
[334483154,1723156240268,-500.0,0.00023989,2]
[334483155,1723156240277,-260.79126149,0.00023989,2]
[334483156,1723156240286,-198.55798383,0.00023989,2]
[334483157,1723156240297,-500.0,0.00023989,2]
[334483158,1723156240307,-500.0,0.00023989,2]
[334483159,1723156240317,-500.0,0.00023989,2]
[334483160,1723156240326,-350.0000003,0.00023989,2]
[334483161,1723156240336,-500.0,0.00023989,2]
[334483162,1723156240347,-500.0,0.00023989,2]
[334483163,1723156240359,-500.0,0.00023989,2]
[334483164,1723156240368,-500.0,0.00023989,2]
[334483165,1723156240377,-500.0,0.00023989,2]
[334483166,1723156240386,-500.0,0.00023989,2]
[334483167,1723156240396,-500.0,0.00023989,2]
[334483168,1723156240405,-500.0,0.00023989,2]
[334483169,1723156240414,-500.0,0.00023989,2]
[334483170,1723156240423,-500.0,0.00023989,2]
[334483171,1723156240433,-500.0,0.00023989,2]
[334483172,1723156240443,-500.0,0.00023989,2]
[334483173,1723156240452,-34890.1212277,0.0002399,3]
[334483174,1723156240461,-4350.92455896,0.00024,30]
[334483175,1723156240470,-318.49119154,0.00024,2]
[334483176,1723156240479,-150.112233,0.00024,2]
[334483177,1723156240488,-150.112233,0.000241,2]
[334483178,1723156240498,-5128.19474419,0.00024137,2]
[334483179,1723156240508,-153.0,0.00024399,2]
[334483180,1723156240518,-153.0,0.00024399,2]
[334483181,1723156240529,-153.0,0.00024399,2]
[334483182,1723156240538,-153.0,0.00024399,2]
[334483183,1723156240548,-153.0,0.00024399,2]
[334483184,1723156240558,-5128.19474419,0.00024459,2]
[334483185,1723156240567,-5128.19474419,0.00024844,2]
[334483186,1723156240577,-5128.19474419,0.00024984,2]
[334483187,1723156240587,-34890.1212277,0.0002499,3]
[334483188,1723156240598,-2005.0,0.00024999,10]
[334483189,1723156240607,-23201.42953338,0.00025,30]
[334483190,1723156240616,-299.4439556,0.00025,2]
[334483191,1723156240625,-1855.52515125,0.00025,2]
[334483192,1723156240635,-1027.78654758,0.00025,2]
[334483193,1723156240644,-45217.61026187,0.00025,2]
[334483194,1723156240653,-12403.13829252,0.00025,2]
[334483195,1723156240663,-150.112233,0.00025,2]
[334483196,1723156240673,-620.02310732,0.00025005,2]
[334483197,1723156240682,-620.8386415,0.00025005,2]
[334483198,1723156240691,-34890.1212277,0.00025209,3]
[334483199,1723156240702,-17996.0413967,0.00025268,2]
[334483200,1723156240711,-1137.0,0.00025296,2]
[334483201,1723156240720,-153.0,0.00025308,2]
[334483202,1723156240729,-153.0,0.00025308,2]
[334483203,1723156240739,-153.0,0.00025308,2]
[334483204,1723156240749,-153.0,0.00025308,2]
[334483205,1723156240759,-153.0,0.00025308,2]
[334483206,1723156240769,-153.0,0.00025308,2]
[334483207,1723156240778,-153.0,0.00025308,2]
[334483208,1723156240788,-153.0,0.00025308,2]
[334483209,1723156240797,-153.0,0.00025308,2]
[334483210,1723156240808,-153.0,0.00025308,2]
[334483211,1723156240818,-153.0,0.00025308,2]
[334483212,1723156240827,-153.0,0.00025308,2]
[334483213,1723156240836,-153.0,0.00025308,2]
[334483214,1723156240847,-5128.19474419,0.00025384,2]
[334483215,1723156240857,-150.112233,0.000254,10]
[334483216,1723156240866,-5128.19474419,0.00025532,2]
[334483217,1723156240876,-6825.84105538,0.00025759,2]
[334483218,1723156240885,-5128.19474419,0.00025867,2]
[334483219,1723156240895,-153.0,0.0002589,2]
[334483220,1723156240907,-150.0,0.00025994,2]
[334483221,1723156240918,-150.112233,0.00026,5]
[334483222,1723156240927,-200.0,0.00026027,2]
[334483223,1723156240938,-5128.19474419,0.00026156,2]
[334483224,1723156240948,-620.00115537,0.00026255,2]
[334483225,1723156240958,-620.04193208,0.00026255,2]
[334483226,1723156240969,-207.1717265,0.00026301,2]
[334483227,1723156240979,-34890.1212277,0.00026306,3]
[334483228,1723156240989,-153.0,0.00026384,2]
[334483229,1723156240998,-153.0,0.00026384,2]
[334483230,1723156241008,-5128.19474419,0.00026406,2]
[334483231,1723156241017,-153.0,0.00026438,2]
[334483232,1723156241027,-153.0,0.00026438,2]
[334483233,1723156241037,-153.0,0.00026476,2]
[334483234,1723156241046,-7458.94652043,0.0002649,2]
[334483235,1723156241056,-103235.72576609,0.00026517,2]
[334483245,1723156242403,327.12061822,9.999e-05,2]
[334483247,1723156242468,-507.0,0.00025994,2]
[334483248,1723156242478,-16296.44739415,0.00026517,2]
[334483249,1723156242487,-402.58073778,0.00026575,2]
[334483250,1723156242497,-472.12044886,0.00026579,2]
[334483251,1723156242506,-472.12044886,0.00026583,2]